fUSD/lending_fUSD_20250111
["ID","MTS","AMOUNT","RATE_DAILY","PERIOD"]
[348475366,1736554243696,-500.0,0.00010272,2]
[348475367,1736554243706,-354.48,0.00010272,2]
[348475368,1736554243715,-500.0,0.00010272,2]
[348475369,1736554243725,-500.0,0.00010272,2]
[348475370,1736554243734,-500.0,0.00010272,2]
[348475371,1736554243743,-500.0,0.00010272,2]
[348475372,1736554243752,-500.0,0.00010272,2]
[348475373,1736554243761,-500.0,0.00010272,2]
[348475374,1736554243770,-500.0,0.00010272,2]
[348475375,1736554243780,-500.0,0.00010272,2]
[348475376,1736554243789,-620.65688888,0.00010272,2]
[348475377,1736554243799,-500.0,0.00010272,2]
[348475378,1736554243808,-500.0,0.00010272,2]
[348475379,1736554243817,-500.0,0.00010272,2]
[348475380,1736554243826,-633.28,0.00010272,2]
[348475381,1736554243836,-500.0,0.00010272,2]
[348475382,1736554243846,-500.0,0.00010272,2]
[348475383,1736554243855,-500.0,0.00010272,2]
[348475384,1736554243864,-500.0,0.00010272,2]
[348475385,1736554243874,-500.0,0.00010272,2]
[348475386,1736554243883,-500.0,0.00010272,2]
[348475387,1736554243893,-178.72,0.00010272,2]
[348475388,1736554243902,-500.0,0.00010272,2]
[348475389,1736554243911,-500.0,0.00010272,2]
[348475390,1736554243921,-500.0,0.00010272,2]
[348475391,1736554243930,-337.72115197,0.00010272,2]
[348475392,1736554243939,-513.81,0.00010272,2]
[348475393,1736554243950,-591.2861657,0.00010272,2]
[348475394,1736554243959,-500.0,0.00010272,2]
[348475395,1736554243968,-559.22,0.00010272,2]
[348475396,1736554243978,-500.0,0.00010272,2]
[348475397,1736554243987,-500.0,0.00010272,2]
[348475398,1736554243997,-500.0,0.00010272,2]
[348475399,1736554244007,-500.0,0.00010272,2]
[348475400,1736554244017,-500.0,0.00010272,2]
[348475401,1736554244027,-500.0,0.00010272,2]
[348475402,1736554244037,-571.12,0.00010272,2]
[348475403,1736554244046,-500.0,0.00010272,2]
[348475404,1736554244055,-500.0,0.00010272,2]
[348475405,1736554244066,-500.0,0.00010272,2]
[348475406,1736554244075,-500.0,0.00010272,2]
[348475407,1736554244083,-500.0,0.00010272,2]
[348475408,1736554244094,-500.0,0.00010272,2]
[348475409,1736554244103,-500.0,0.00010272,2]
[348475410,1736554244111,-500.0,0.00010272,2]
[348475411,1736554244120,-248.75883697,0.00010272,2]
[348475412,1736554244130,-621.57,0.00010272,2]
[348475413,1736554244139,-535.33,0.00010272,2]
[348475414,1736554244148,-693.2588,0.00010272,2]
[348475415,1736554244158,-500.0,0.00010272,2]
[348475416,1736554244168,-417.08416327,0.00010272,2]
[348475417,1736554244177,-500.0,0.00010272,2]
[348475418,1736554244186,-267.67358902,0.00010272,2]
[348475419,1736554244195,-572.684649,0.00010272,2]
[348475420,1736554244204,-500.0,0.00010272,2]
[348475421,1736554244214,-500.0,0.00010272,2]
[348475422,1736554244223,-500.0,0.00010272,2]
[348475423,1736554244232,-602.82,0.00010272,2]
[348475424,1736554244240,-500.0,0.00010272,2]
[348475425,1736554244251,-500.0,0.00010272,2]
[348475426,1736554244264,-284.44026093,0.00010272,2]
[348475427,1736554244273,-500.0,0.00010272,2]
[348475428,1736554244283,-500.0,0.00010272,2]
[348475429,1736554244295,-500.0,0.00010272,2]
[348475430,1736554244306,-500.0,0.00010272,2]
[348475431,1736554244316,-500.0,0.00010272,2]
[348475432,1736554244326,-500.0,0.00010272,2]
[348475433,1736554244335,-500.0,0.00010272,2]
[348475434,1736554244344,-500.0,0.00010272,2]
[348475435,1736554244353,-500.0,0.00010272,2]
[348475436,1736554244362,-209.86345333,0.00010272,2]
[348475437,1736554244372,-500.0,0.00010272,2]
[348475438,1736554244381,-500.0,0.00010272,2]
[348475439,1736554244390,-500.0,0.00010272,2]
[348475440,1736554244399,-500.0,0.00010272,2]
[348475441,1736554244408,-500.0,0.00010272,2]
[348475442,1736554244418,-500.0,0.00010272,2]
[348475443,1736554244427,-500.0,0.00010272,2]
[348475444,1736554244436,-617.43,0.00010272,2]
[348475445,1736554244447,-500.0,0.00010272,2]
[348475446,1736554244456,-500.0,0.00010272,2]
[348475447,1736554244467,-500.0,0.00010272,2]
[348475448,1736554244476,-500.0,0.00010272,2]
[348475449,1736554244485,-500.0,0.00010272,2]
[348475450,1736554244495,-500.82,0.00010272,2]
[348475451,1736554244504,-500.0,0.00010272,2]
[348475452,1736554244513,-2261.06,0.00010272,2]
[348475453,1736554244522,-500.0,0.00010272,2]
[348475454,1736554244531,-500.0,0.00010272,2]
[348475455,1736554244540,-500.0,0.00010272,2]
[348475456,1736554244549,-500.0,0.00010272,2]
[348475457,1736554244558,-500.0,0.00010272,2]
[348475458,1736554244567,-832.94,0.00010272,2]
[348475459,1736554244576,-500.0,0.00010272,2]
[348475460,1736554244585,-500.0,0.00010272,2]
[348475461,1736554244594,-500.0,0.00010272,2]
[348475462,1736554244603,-500.0,0.00010272,2]
[348475463,1736554244611,-500.0,0.00010272,2]
[348475464,1736554244621,-500.0,0.00010272,2]
[348475465,1736554244629,-1332.78,0.00010272,2]
[348475466,1736554244639,-500.0,0.00010272,2]
[348475467,1736554244649,-500.0,0.00010272,2]
[348475468,1736554244658,-532.82,0.00010272,2]
[348475469,1736554244667,-1131.42,0.00010272,2]
[348475470,1736554244676,-500.0,0.00010272,2]
[348475471,1736554244685,-500.0,0.00010272,2]
[348475472,1736554244694,-1062.56,0.00010272,2]
[348475473,1736554244704,-500.0,0.00010272,2]
[348475474,1736554244713,-500.0,0.00010272,2]
[348475475,1736554244722,-1490.42,0.00010272,2]
[348475476,1736554244731,-500.0,0.00010272,2]
[348475477,1736554244741,-500.0,0.00010272,2]
[348475478,1736554244750,-500.0,0.00010272,2]
[348475479,1736554244759,-1041.77,0.00010272,2]
[348475480,1736554244768,-3674.74,0.00010272,2]
[348475481,1736554244777,-500.0,0.00010272,2]
[348475482,1736554244787,-500.0,0.00010272,2]
[348475483,1736554244796,-500.0,0.00010272,2]
[348475484,1736554244805,-888.52,0.00010272,2]
[348475485,1736554244814,-500.0,0.00010272,2]
[348475486,1736554244824,-500.0,0.00010272,2]
[348475487,1736554244834,-500.0,0.00010272,2]
[348475488,1736554244843,-500.0,0.00010272,2]
[348475489,1736554244852,-500.0,0.00010272,2]
[348475490,1736554244861,-500.0,0.00010272,2]
[348475491,1736554245095,-1691.41,0.00010272,2]
[348475492,1736554245106,-500.0,0.00010272,2]
[348475493,1736554245115,-500.0,0.00010272,2]
[348475494,1736554245125,-673.19,0.00010272,2]
[348475495,1736554245135,-500.0,0.00010272,2]
[348475496,1736554245144,-2401.67,0.00010272,2]
[348475497,1736554245155,-500.0,0.00010272,2]
[348475498,1736554245165,-505.24,0.00010272,2]
[348475499,1736554245175,-866.95,0.00010272,2]
[348475500,1736554245185,-742.12,0.00010272,2]
[348475501,1736554245196,-1798.01,0.00010272,2]
[348475502,1736554245206,-500.0,0.00010272,2]
[348475503,1736554245215,-500.0,0.00010272,2]
[348475504,1736554245226,-811.32,0.00010272,2]
[348475505,1736554245237,-1265.24,0.00010272,2]
[348475506,1736554245247,-500.0,0.00010272,2]
[348475507,1736554245262,-766.28,0.00010272,2]
[348475508,1736554245271,-500.0,0.00010272,2]
[348475509,1736554245280,-500.0,0.00010272,2]
[348475510,1736554245289,-501.55,0.00010272,2]
[348475511,1736554245299,-500.0,0.00010272,2]
[348475512,1736554245307,-500.0,0.00010272,2]
[348475513,1736554245316,-2106.68,0.00010272,2]
[348475514,1736554245327,-1168.81,0.00010272,2]
[348475515,1736554245336,-500.0,0.00010272,2]
[348475516,1736554245345,-500.0,0.00010272,2]
[348475517,1736554245354,-652.24,0.00010272,2]
[348475518,1736554245363,-500.0,0.00010272,2]
[348475519,1736554245372,-522.74,0.00010272,2]
[348475520,1736554245381,-1179.1,0.00010272,2]
[348475521,1736554245391,-500.0,0.00010272,2]
[348475522,1736554245400,-500.0,0.00010272,2]
[348475523,1736554245408,-1770.05,0.00010272,2]
[348475524,1736554245418,-2290.53,0.00010272,2]
[348475525,1736554245427,-319.49770166,0.00010272,2]
[348475526,1736554245436,-970.08,0.00010272,2]
[348475527,1736554245445,-500.0,0.00010272,2]
[348475528,1736554245457,-1821.19,0.00010272,2]
[348475529,1736554245466,-500.0,0.00010272,2]
[348475530,1736554245475,-500.0,0.00010272,2]
[348475531,1736554245485,-500.0,0.00010272,2]
[348475532,1736554245494,-500.0,0.00010272,2]
[348475533,1736554245503,-500.0,0.00010272,2]
[348475534,1736554245513,-531.56,0.00010272,2]
[348475535,1736554245524,-335.30804247,0.00010272,2]
[348475536,1736554245535,-500.0,0.00010272,2]
[348475537,1736554245544,-500.0,0.00010272,2]
[348475538,1736554245554,-991.23,0.00010272,2]
[348475539,1736554245564,-1299.5,0.00010272,2]
[348475540,1736554245574,-500.0,0.00010272,2]
[348475541,1736554245583,-1719.87,0.00010272,2]
[348475542,1736554245592,-500.0,0.00010272,2]
[348475543,1736554245601,-933.17,0.00010272,2]
[348475544,1736554245610,-2058.84,0.00010272,2]
[348475545,1736554245619,-500.0,0.00010272,2]
[348475546,1736554245628,-500.0,0.00010272,2]
[348475547,1736554245639,-500.0,0.00010272,2]
[348475548,1736554245648,-500.0,0.00010272,2]
[348475549,1736554245657,-500.0,0.00010272,2]
[348475550,1736554245666,-500.0,0.00010272,2]
[348475551,1736554245675,-894.36,0.00010272,2]
[348475552,1736554245685,-500.0,0.00010272,2]
[348475553,1736554245694,-500.0,0.00010272,2]
[348475554,1736554245704,-500.0,0.00010272,2]
[348475555,1736554245713,-201.71683218,0.00010272,2]
[348475556,1736554245722,-996.82,0.00010272,2]
[348475557,1736554245732,-500.0,0.00010272,2]
[348475558,1736554245741,-728.3,0.00010272,2]
[348475559,1736554245750,-1333.0,0.00010272,2]
[348475561,1736554245759,-500.0,0.00010272,2]
[348475562,1736554245769,-500.0,0.00010272,2]
[348475563,1736554245779,-500.0,0.00010272,2]
[348475564,1736554245789,-500.0,0.00010272,2]
[348475565,1736554245800,-1020.19,0.00010272,2]
[348475566,1736554245810,-500.0,0.00010272,2]
[348475567,1736554245819,-275.44967595,0.00010273,2]
[348475568,1736554245830,-500.80463259,0.00010273,2]
[348475569,1736554245842,-502.12075007,0.00010273,2]
[348475570,1736554245851,-500.96804778,0.00010273,2]
[348475571,1736554245862,-503.13166563,0.00010273,2]
[348475572,1736554245871,-501.99067918,0.00010273,2]
[348475573,1736554245881,-500.69368204,0.00010273,2]
[348475574,1736554245890,-502.85718823,0.00010273,2]
[348475575,1736554245899,-501.66983493,0.00010273,2]
[348475576,1736554245908,-501.1098614,0.00010273,2]
[348475577,1736554245917,-397.99543455,0.00010273,2]
[348475578,1736554245927,-502.51876585,0.00010273,2]
[348475579,1736554245937,-501.97774188,0.00010273,2]
[348475580,1736554245947,-503.37953518,0.00010273,2]
[348475581,1736554245957,-502.2692072,0.00010273,2]
[348475582,1736554245966,-502.4382404,0.00010273,2]
[348475583,1736554245975,-841.66,0.00010273,2]
[348475584,1736554245985,-772.75,0.00010273,2]
[348475585,1736554245994,-500.0,0.00010273,2]
[348475586,1736554246003,-1709.04,0.00010273,2]
[348475587,1736554246012,-548.31,0.00010273,2]
[348475588,1736554246021,-500.0,0.00010273,2]
[348475589,1736554246031,-617.41,0.00010273,2]
[348475590,1736554246041,-590.18,0.00010273,2]
[348475591,1736554246050,-500.0,0.00010273,2]
[348475592,1736554246059,-500.0,0.00010273,2]
[348475593,1736554246069,-500.0,0.00010273,2]
[348475594,1736554246080,-500.0,0.00010273,2]
[348475595,1736554246090,-500.0,0.00010273,2]
[348475596,1736554246099,-500.0,0.00010273,2]
[348475597,1736554246108,-935.77,0.00010273,2]
[348475598,1736554246118,-1079.41,0.00010273,2]
[348475599,1736554246127,-1886.3,0.00010273,2]
[348475600,1736554246136,-500.0,0.00010273,2]
[348475601,1736554246145,-1013.62,0.00010273,2]
[348475602,1736554246156,-2462.22,0.00010273,2]
[348475603,1736554246165,-500.0,0.00010273,2]
[348475604,1736554246175,-2303.2,0.00010344,2]
[348475605,1736554246184,-2303.2,0.00010344,2]
[348475606,1736554246193,-2303.2,0.00010344,2]
[348475607,1736554246203,-2303.2,0.00010344,2]
[348475608,1736554246212,-652.2,0.00010345,2]
[348475609,1736554246221,-500.0,0.00010345,2]
[348475610,1736554246231,-515.44,0.00010345,2]
[348475611,1736554246240,-500.0,0.00010345,2]
[348475612,1736554246250,-889.48608853,0.00010345,2]
[348475613,1736554246263,-500.0,0.00010345,2]
[348475614,1736554246272,-500.0,0.00010345,2]
[348475615,1736554246281,-832.78,0.00010345,2]
[348475616,1736554246291,-203.99708357,0.00010374,2]
[348475617,1736554246303,-365.0,0.000104,2]
[348475618,1736554246314,-1000.0,0.000104,2]
[348475619,1736554246324,-231.0,0.000104,2]
[348475620,1736554246335,-1000.0,0.00010402,2]
[348475621,1736554246346,-515.23,0.00010421,2]
[348475622,1736554246356,-647.87,0.00010427,2]
[348475623,1736554246366,-500.0,0.00010447,2]
[348475624,1736554246375,-313.48,0.00010447,2]
[348475625,1736554246384,-2678.5,0.00010447,2]
[348475626,1736554246393,-1086.44,0.00010447,2]
[348475627,1736554246402,-2558.66,0.00010447,2]
[348475628,1736554246412,-2908.24,0.00010447,2]
[348475629,1736554246422,-500.0,0.00010447,2]
[348475630,1736554246432,-1168.85,0.00010447,2]
[348475631,1736554246442,-2249.65,0.00010447,2]
[348475632,1736554246454,-29999.99,0.00010475,2]
[348475633,1736554246464,-344.47,0.00010475,2]
[348475634,1736554246474,-29999.99,0.00010475,2]
[348475635,1736554246485,-1127.41,0.00010475,2]
[348475636,1736554246494,-152.15,0.000105,2]
[348475637,1736554246504,-203.99708357,0.00010532,2]
[348475638,1736554246513,-500.0,0.00010546,2]
[348475639,1736554246522,-500.0,0.00010546,2]
[348475640,1736554246531,-500.0,0.00010546,2]
[348475641,1736554246540,-500.0,0.00010546,2]
[348475642,1736554246550,-172.49,0.00010546,2]
[348475643,1736554246560,-503.66,0.00010546,2]
[348475644,1736554246570,-500.0,0.00010546,2]
[348475645,1736554246579,-500.0,0.00010546,2]
[348475646,1736554246589,-500.0,0.00010546,2]
[348475647,1736554246598,-508.98743759,0.00010546,2]
[348475648,1736554246607,-500.0,0.00010546,2]
[348475649,1736554246619,-500.0,0.00010546,2]
[348475650,1736554246632,-500.0,0.00010546,2]
[348475651,1736554246643,-500.0,0.00010546,2]
[348475652,1736554246652,-500.0,0.00010546,2]
[348475653,1736554246662,-500.0,0.00010546,2]
[348475654,1736554246672,-500.0,0.00010546,2]
[348475655,1736554246681,-224.3347869,0.00010546,2]
[348475656,1736554246691,-500.0,0.00010546,2]
[348475657,1736554246701,-500.0,0.00010546,2]
[348475658,1736554246710,-500.0,0.00010546,2]
[348475659,1736554246719,-500.0,0.00010546,2]
[348475660,1736554246728,-500.0,0.00010546,2]
[348475661,1736554246737,-500.0,0.00010546,2]
[348475662,1736554246747,-500.0,0.00010546,2]
[348475663,1736554246756,-438.7,0.00010546,2]
[348475664,1736554246766,-500.0,0.00010546,2]
[348475665,1736554246775,-559.22,0.00010546,2]
[348475666,1736554246784,-500.0,0.00010546,2]
[348475667,1736554246793,-500.0,0.00010546,2]
[348475668,1736554246802,-500.0,0.00010546,2]
[348475669,1736554246813,-500.0,0.00010546,2]
[348475670,1736554246824,-344.32,0.00010546,2]
[348475671,1736554246836,-571.12,0.00010546,2]
[348475672,1736554246846,-500.0,0.00010546,2]
[348475673,1736554246856,-500.0,0.00010546,2]
[348475674,1736554246866,-500.0,0.00010546,2]
[348475675,1736554246875,-343.75,0.00010546,2]
[348475676,1736554246885,-500.0,0.00010546,2]
[348475677,1736554246894,-500.0,0.00010546,2]
[348475678,1736554246904,-362.43,0.00010546,2]
[348475679,1736554246913,-535.33,0.00010546,2]
[348475680,1736554246922,-693.2588,0.00010546,2]
[348475681,1736554246932,-164.63,0.00010546,2]
[348475682,1736554246942,-500.0,0.00010546,2]
[348475683,1736554246951,-572.684649,0.00010546,2]
[348475684,1736554246961,-500.0,0.00010546,2]
[348475685,1736554246971,-500.0,0.00010546,2]
[348475686,1736554246981,-500.0,0.00010546,2]
[348475687,1736554246991,-602.82,0.00010546,2]
[348475688,1736554247002,-500.0,0.00010546,2]
[348475689,1736554247011,-500.0,0.00010546,2]
[348475690,1736554247020,-500.0,0.00010546,2]
[348475691,1736554247030,-500.0,0.00010546,2]
[348475692,1736554247040,-500.0,0.00010546,2]
[348475693,1736554247049,-500.0,0.00010546,2]
[348475694,1736554247058,-500.0,0.00010546,2]
[348475695,1736554247069,-500.0,0.00010546,2]
[348475696,1736554247079,-500.0,0.00010546,2]
[348475697,1736554247090,-500.0,0.00010546,2]
[348475698,1736554247101,-500.0,0.00010546,2]
[348475699,1736554247110,-500.0,0.00010546,2]
[348475700,1736554247120,-500.0,0.00010546,2]
[348475701,1736554247131,-500.0,0.00010546,2]
[348475702,1736554247141,-500.0,0.00010546,2]
[348475703,1736554247152,-500.0,0.00010546,2]
[348475704,1736554247164,-500.0,0.00010546,2]
[348475705,1736554247174,-617.43,0.00010546,2]
[348475706,1736554247183,-500.0,0.00010546,2]
[348475707,1736554247194,-500.0,0.00010546,2]
[348475708,1736554247205,-500.0,0.00010546,2]
[348475709,1736554247214,-500.0,0.00010546,2]
[348475710,1736554247224,-500.0,0.00010546,2]
[348475711,1736554247234,-500.0,0.00010546,2]
[348475712,1736554247244,-2261.06,0.00010546,2]
[348475713,1736554247259,-500.0,0.00010546,2]
[348475714,1736554247269,-500.0,0.00010546,2]
[348475715,1736554247278,-500.0,0.00010546,2]
[348475716,1736554247287,-832.94,0.00010546,2]
[348475717,1736554247297,-500.0,0.00010546,2]
[348475718,1736554247307,-500.0,0.00010546,2]
[348475719,1736554247316,-500.0,0.00010546,2]
[348475720,1736554247327,-500.0,0.00010546,2]
[348475721,1736554247336,-500.0,0.00010546,2]
[348475722,1736554247347,-1332.78,0.00010546,2]
[348475723,1736554247356,-500.0,0.00010546,2]
[348475724,1736554247367,-500.0,0.00010546,2]
[348475725,1736554247376,-532.82,0.00010546,2]
[348475726,1736554247387,-1131.42,0.00010546,2]
[348475727,1736554247397,-500.0,0.00010546,2]
[348475728,1736554247406,-500.0,0.00010546,2]
[348475729,1736554247416,-1062.56,0.00010546,2]
[348475730,1736554247426,-500.0,0.00010546,2]
[348475731,1736554247438,-1490.42,0.00010546,2]
[348475732,1736554247448,-499.33281469,0.00010546,2]
[348475733,1736554247459,-500.0,0.00010546,2]
[348475734,1736554247469,-1041.77,0.00010546,2]
[348475735,1736554247479,-3674.74,0.00010546,2]
[348475736,1736554247488,-500.0,0.00010546,2]
[348475737,1736554247498,-500.0,0.00010546,2]
[348475738,1736554247508,-888.52,0.00010546,2]
[348475739,1736554247517,-553.86,0.00010546,2]
[348475740,1736554247527,-500.0,0.00010546,2]
[348475741,1736554247542,-500.0,0.00010546,2]
[348475742,1736554247552,-500.0,0.00010546,2]
[348475743,1736554247563,-500.0,0.00010546,2]
[348475744,1736554247573,-500.0,0.00010546,2]
[348475745,1736554247583,-1691.41,0.00010546,2]
[348475746,1736554247593,-500.0,0.00010546,2]
[348475747,1736554247603,-673.19,0.00010546,2]
[348475748,1736554247613,-500.0,0.00010546,2]
[348475749,1736554247623,-2401.67,0.00010546,2]
[348475750,1736554247632,-284.98,0.00010546,2]
[348475751,1736554247643,-505.24,0.00010546,2]
[348475752,1736554247654,-742.12,0.00010546,2]
[348475753,1736554247664,-866.95,0.00010546,2]
[348475754,1736554247674,-1798.01,0.00010546,2]
[348475755,1736554247683,-500.0,0.00010546,2]
[348475756,1736554247693,-500.0,0.00010546,2]
[348475757,1736554247703,-811.32,0.00010546,2]
[348475758,1736554247714,-1265.24,0.00010546,2]
[348475759,1736554247723,-766.28,0.00010546,2]
[348475760,1736554247734,-500.0,0.00010546,2]
[348475761,1736554247743,-501.55,0.00010546,2]
[348475762,1736554247753,-500.0,0.00010546,2]
[348475763,1736554247763,-2106.68,0.00010546,2]
[348475764,1736554247774,-1168.81,0.00010546,2]
[348475765,1736554247784,-394.94945206,0.00010546,2]
[348475766,1736554247795,-652.24,0.00010546,2]
[348475767,1736554247805,-522.74,0.00010546,2]
[348475768,1736554247816,-500.0,0.00010546,2]
[348475769,1736554247827,-1179.1,0.00010546,2]
[348475770,1736554247837,-500.0,0.00010546,2]
[348475771,1736554247847,-336.50420754,0.00010546,2]
[348475772,1736554247856,-1770.05,0.00010546,2]
[348475773,1736554247866,-2290.53,0.00010546,2]
[348475774,1736554247876,-970.08,0.00010546,2]
[348475775,1736554247886,-1821.19,0.00010546,2]
[348475776,1736554247896,-500.0,0.00010546,2]
[348475777,1736554247906,-500.0,0.00010546,2]
[348475778,1736554247916,-500.0,0.00010546,2]
[348475779,1736554247926,-531.56,0.00010546,2]
[348475780,1736554247938,-500.0,0.00010546,2]
[348475781,1736554247948,-991.23,0.00010546,2]
[348475782,1736554247959,-1299.5,0.00010546,2]
[348475783,1736554247968,-500.0,0.00010546,2]
[348475784,1736554247978,-1719.87,0.00010546,2]
[348475785,1736554247988,-500.0,0.00010546,2]
[348475786,1736554247998,-933.17,0.00010546,2]
[348475787,1736554248009,-2058.84,0.00010546,2]
[348475788,1736554248019,-500.0,0.00010546,2]
[348475789,1736554248029,-500.0,0.00010546,2]
[348475790,1736554248039,-500.0,0.00010546,2]
[348475791,1736554248049,-500.0,0.00010546,2]
[348475792,1736554248065,-500.0,0.00010546,2]
[348475793,1736554248077,-894.36,0.00010546,2]
[348475794,1736554248088,-500.0,0.00010546,2]
[348475795,1736554248097,-602.97976846,0.00010546,2]
[348475796,1736554248108,-500.0,0.00010546,2]
[348475797,1736554248118,-996.82,0.00010546,2]
[348475798,1736554248128,-500.0,0.00010546,2]
[348475799,1736554248139,-728.3,0.00010546,2]
[348475800,1736554248149,-1333.0,0.00010546,2]
[348475801,1736554248160,-500.0,0.00010546,2]
[348475802,1736554248171,-500.0,0.00010546,2]
[348475803,1736554248181,-500.0,0.00010546,2]
[348475804,1736554248191,-500.0,0.00010546,2]
[348475805,1736554248203,-1020.19,0.00010546,2]
[348475806,1736554248213,-525.15,0.00010546,2]
[348475807,1736554248222,-151.0,0.00010547,2]
[348475808,1736554248232,-151.0,0.00010547,2]
[348475809,1736554248242,-841.66,0.00010547,2]
[348475810,1736554248255,-500.0,0.00010547,2]
[348475811,1736554248266,-1709.04,0.00010547,2]
[348475812,1736554248276,-548.31,0.00010547,2]
[348475813,1736554248287,-500.0,0.00010547,2]
[348475814,1736554248300,-617.41,0.00010547,2]
[348475815,1736554248310,-500.0,0.00010547,2]
[348475816,1736554248321,-500.0,0.00010547,2]
[348475817,1736554248332,-500.0,0.00010547,2]
[348475818,1736554248344,-500.0,0.00010547,2]
[348475819,1736554248355,-500.0,0.00010547,2]
[348475820,1736554248366,-500.0,0.00010547,2]
[348475821,1736554248376,-935.77,0.00010547,2]
[348475822,1736554248387,-1079.41,0.00010547,2]
[348475823,1736554248397,-1886.3,0.00010547,2]
[348475824,1736554248408,-1013.62,0.00010547,2]
[348475825,1736554248418,-2462.22,0.00010547,2]
[348475826,1736554248428,-643.13,0.00010547,2]
[348475827,1736554248439,-1360.0,0.00010618,2]
[348475828,1736554248448,-652.2,0.00010619,2]
[348475829,1736554248460,-500.0,0.00010619,2]
[348475830,1736554248470,-515.44,0.00010619,2]
[348475831,1736554248480,-500.0,0.00010619,2]
[348475832,1736554248490,-500.0,0.00010619,2]
[348475833,1736554248500,-500.0,0.00010619,2]
[348475834,1736554248510,-832.78,0.00010619,2]
[348475835,1736554248519,-203.99708357,0.00010689,2]
[348475836,1736554248530,-500.0,0.00010721,2]
[348475837,1736554248540,-2678.5,0.00010721,2]
[348475838,1736554248550,-1086.44,0.00010721,2]
[348475839,1736554248561,-2558.66,0.00010721,2]
[348475840,1736554248572,-2908.24,0.00010721,2]
[348475841,1736554248587,-500.0,0.00010721,2]
[348475842,1736554248597,-1168.85,0.00010721,2]
[348475843,1736554248608,-2249.65,0.00010721,2]
[348475844,1736554248618,-545.81083584,0.00010747,2]
[348475845,1736554248628,-806.4637249,0.00010757,2]
[348475846,1736554248638,-500.0,0.0001082,2]
[348475847,1736554248649,-500.0,0.0001082,2]
[348475848,1736554248659,-500.0,0.0001082,2]
[348475849,1736554248670,-500.0,0.0001082,2]
[348475850,1736554248680,-500.0,0.0001082,2]
[348475851,1736554248690,-500.0,0.0001082,2]
[348475852,1736554248700,-500.0,0.0001082,2]
[348475853,1736554248711,-500.0,0.0001082,2]
[348475854,1736554248721,-500.0,0.0001082,2]
[348475855,1736554248731,-500.0,0.0001082,2]
[348475856,1736554248740,-500.0,0.0001082,2]
[348475857,1736554248751,-500.0,0.0001082,2]
[348475858,1736554248760,-500.0,0.0001082,2]
[348475859,1736554248770,-500.0,0.0001082,2]
[348475860,1736554248780,-500.0,0.0001082,2]
[348475861,1736554248789,-500.0,0.0001082,2]
[348475862,1736554248800,-500.0,0.0001082,2]
[348475863,1736554248810,-500.0,0.0001082,2]
[348475864,1736554248820,-500.0,0.0001082,2]
[348475865,1736554248831,-500.0,0.0001082,2]
[348475866,1736554248841,-500.0,0.0001082,2]